bitfinex-derivatives/quotes_BTCF0:USTF0_20250713
["timestamp","ask_amount","ask_price","bid_price","bid_amount"]
[1752430855630,0.1721086,118930.0,118920.0,2.74083773]
[1752430855929,0.1723086,118930.0,118920.0,2.74083773]
[1752430856532,0.1723086,118930.0,118920.0,2.44653773]
[1752430857326,0.48999237,118930.0,118920.0,2.16146396]
[1752430857527,0.51832237,118930.0,118920.0,2.16146396]
[1752430857830,0.0042,118930.0,118920.0,2.44653773]
[1752430858130,0.1723086,118930.0,118920.0,2.44653773]
[1752430858332,0.0042,118930.0,118920.0,2.44653773]
[1752430858723,0.0042,118930.0,118920.0,2.7316115]
[1752430859533,0.1680919,118950.0,118940.0,0.2688145]
[1752430859734,0.18469298,118950.0,118940.0,2.42380827]
[1752430859935,0.01660108,118950.0,118940.0,2.44160315]
[1752430860832,0.01860108,118950.0,118940.0,2.44160315]
[1752430861430,0.01660108,118950.0,118940.0,2.44160315]
[1752430861631,0.01760108,118950.0,118940.0,2.44160315]
[1752430863341,0.01760108,118950.0,118940.0,2.48261673]
[1752430863841,0.01760108,118950.0,118940.0,2.48265673]
[1752430866942,0.18568168,118950.0,118940.0,2.48265673]
[1752430869245,0.01760108,118950.0,118940.0,2.48265673]
[1752430871150,0.01760108,118950.0,118940.0,1.76105673]
[1752430871453,0.01760108,118950.0,118940.0,2.48265673]
[1752430879058,0.01760108,118950.0,118940.0,2.62506564]
[1752430879357,0.01780108,118950.0,118940.0,2.62506564]
[1752430879959,0.01780108,118950.0,118940.0,2.83880698]
[1752430880156,0.1720637,118970.0,118960.0,0.1981865]
[1752430880361,0.1720637,118970.0,118960.0,2.56630918]
[1752430880556,0.1720637,118970.0,118960.0,2.54718009]
[1752430880957,0.004,118970.0,118960.0,2.40464457]
[1752430881163,0.004,118970.0,118960.0,2.11869741]
[1752430881556,0.004,118970.0,118960.0,2.40364457]
[1752430882061,0.004,118970.0,118960.0,2.20273987]
[1752430882252,0.004,118970.0,118960.0,2.48768703]
[1752430883062,0.004,118970.0,118960.0,2.77263419]
[1752430884267,0.27059821,118990.0,118980.0,0.2712382]
[1752430884461,0.27059821,118990.0,118980.0,2.42686536]
[1752430885162,0.2100392,118990.0,118980.0,2.42686536]
[1752430886266,0.2100392,118990.0,118980.0,2.1419182]
[1752430886467,0.2100392,118990.0,118980.0,2.42686536]
[1752430888963,0.2430492,118990.0,118980.0,2.42686536]
[1752430892171,0.25963958,118990.0,118980.0,2.42686536]
[1752430893964,0.22662958,118990.0,118980.0,2.42686536]
[1752430894664,0.22662958,118990.0,118980.0,2.1419182]
[1752430894964,0.22662958,118990.0,118980.0,2.42686536]
[1752430896166,0.18462308,118990.0,118980.0,2.42686536]
[1752430900977,0.24518209,118990.0,118980.0,2.42686536]
[1752430901179,0.24538209,118990.0,118980.0,2.42686536]
[1752430902286,0.01679038,118990.0,118980.0,2.42686536]
[1752430902974,0.01679038,118990.0,118980.0,2.56913584]
[1752430905070,0.01679038,118990.0,118980.0,2.42673728]
[1752430906182,0.01679038,118990.0,118980.0,2.42664895]
[1752430911779,0.18481448,118990.0,118980.0,2.42664895]
[1752430912083,0.21782448,118990.0,118980.0,2.42664895]
[1752430914889,0.21782448,118990.0,118980.0,2.14182987]
[1752430915185,0.21782448,118990.0,118980.0,2.42664895]
[1752430919291,0.18481448,118990.0,118980.0,2.42664895]
[1752430924994,0.18481448,118990.0,118980.0,2.56913021]
[1752430925497,0.39846465,118990.0,118980.0,2.56913021]
[1752430926396,0.39846465,118990.0,118980.0,2.14182987]
[1752430926594,0.18481448,118990.0,118980.0,2.56913021]
[1752430927992,0.18481448,118990.0,118980.0,2.14182987]
[1752430928190,0.47766465,118990.0,118980.0,2.14182987]
[1752430928394,0.47766465,118990.0,118980.0,2.35548004]
[1752430928996,0.48719465,118990.0,118980.0,2.35548004]
[1752430929196,0.47766465,118990.0,118980.0,2.35548004]
[1752430929995,0.47766465,118990.0,118980.0,2.14182987]
[1752430930197,0.47766465,118990.0,118980.0,2.35548004]
[1752430930397,1.06115465,118990.0,118980.0,0.9928382]
[1752430930603,1.06115465,118990.0,118980.0,0.8248]
[1752430930802,1.06115465,118990.0,118980.0,0.464]
[1752430931100,1.06115465,118990.0,118980.0,0.6320382]
[1752430932100,1.05162465,118990.0,118980.0,0.6320382]
[1752430932803,1.05170465,118990.0,118980.0,0.6320382]
[1752430933003,1.06123465,118990.0,118980.0,0.6320382]
[1752430934003,1.06123465,118990.0,118980.0,0.464]
[1752430934504,1.06123465,118990.0,118980.0,0.07172]
[1752430934802,1.22932265,118990.0,118980.0,0.07172]
[1752430935305,1.22932265,118990.0,118980.0,0.2703882]
[1752430935600,1.06123465,118990.0,118980.0,0.2703882]
[1752430935797,1.22932265,118990.0,118980.0,0.2703882]
[1752430936001,1.22932265,118990.0,118980.0,0.10235]
[1752430936804,1.06144283,118990.0,118980.0,0.10235]
[1752430937606,1.06132283,118990.0,118980.0,0.10235]
[1752430942808,1.06132283,118990.0,118980.0,0.46315]
[1752430943009,1.06132283,118990.0,118980.0,0.10235]
[1752430943508,1.06132283,118990.0,118980.0,0.46315]
[1752430943810,1.06132283,118990.0,118980.0,0.10235]
[1752430944009,0.27375266,118990.0,118980.0,0.46315]
[1752430944210,0.48740283,118990.0,118980.0,0.84483837]
[1752430944514,1.06132283,118990.0,118980.0,0.84483837]
[1752430945610,1.05179283,118990.0,118980.0,0.84483837]
[1752430945800,0.21571266,118990.0,118980.0,1.05848854]
[1752430946004,0.18502266,118990.0,118980.0,1.05848854]
[1752430946606,0.01699856,118990.0,118980.0,1.05848854]
[1752430948015,0.01699856,118990.0,118980.0,1.05948854]
[1752430948517,0.18502256,118990.0,118980.0,1.05948854]
[1752430949022,0.18502256,118990.0,118980.0,0.6321882]
[1752430949210,0.18502256,118990.0,118980.0,0.91700274]
[1752430961323,0.01699856,118990.0,118980.0,0.91700274]
[1752430961828,0.18502256,118990.0,118980.0,0.91700274]
[1752430963026,0.18502256,118990.0,118980.0,0.91800274]
[1752430963329,0.18502256,118990.0,118980.0,0.91700274]
[1752430963530,0.18502256,118990.0,118980.0,0.91900274]
[1752430964426,0.18501278,118990.0,118980.0,0.91900274]
[1752430967634,0.18501278,118990.0,118980.0,1.27980274]
[1752430968329,0.18501278,118990.0,118980.0,0.55820274]
[1752430968532,0.18501278,118990.0,118980.0,1.27980274]
[1752430968934,0.18501278,118990.0,118980.0,1.42224614]
[1752430970129,0.2140027,119010.0,119000.0,0.2005299]
[1752430970334,0.172003,119010.0,119000.0,2.56966784]
[1752430971835,0.172003,119010.0,119000.0,2.60030556]
[1752430972032,0.004,119010.0,119000.0,2.60030556]
[1752430972232,0.1719958,119010.0,119000.0,2.60030556]
[1752430973432,0.004,119010.0,119000.0,2.60030556]
[1752430974339,0.1719958,119010.0,119000.0,2.60030556]
[1752430976840,0.2051458,119010.0,119000.0,2.60030556]
[1752430978040,0.1719958,119010.0,119000.0,2.60030556]
[1752430979744,0.004,119010.0,119000.0,2.60030556]
[1752430982133,0.02059899,119010.0,119000.0,2.60030556]
[1752430986346,0.18859479,119010.0,119000.0,2.60030556]
[1752430986549,0.02059899,119010.0,119000.0,2.60030556]
[1752430990352,0.02059899,119010.0,119000.0,1.87870556]
[1752430990554,0.02079899,119010.0,119000.0,2.60030556]
[1752430993450,0.18879479,119010.0,119000.0,2.60030556]
[1752430993849,0.02079899,119010.0,119000.0,2.60030556]
[1752430995055,0.18879479,119010.0,119000.0,2.60030556]
[1752430995256,0.02079899,119010.0,119000.0,2.60030556]
[1752430995558,0.18879479,119010.0,119000.0,2.60030556]
[1752430996859,0.18882554,119010.0,119000.0,2.60030556]
[1752430997262,0.43277451,119010.0,119000.0,2.35603887]
[1752430997464,0.47977451,119010.0,119000.0,2.35603887]
[1752430999968,0.47978464,119010.0,119000.0,2.35603887]
[1752431000162,0.43278464,119010.0,119000.0,2.35603887]
[1752431000871,0.43278464,119010.0,119000.0,2.56966784]
[1752431001266,0.21915567,119010.0,119000.0,2.56966784]
[1752431001468,0.18883567,119010.0,119000.0,2.56966784]
[1752431004360,0.02083987,119010.0,119000.0,2.56966784]
[1752431004762,0.18883567,119010.0,119000.0,2.1424099]
[1752431004965,0.18883567,119010.0,119000.0,2.56966784]
[1752431006969,0.40246464,119010.0,119000.0,2.56966784]
[1752431007471,0.40246464,119010.0,119000.0,2.1424099]
[1752431007670,0.40246464,119010.0,119000.0,2.56966784]
[1752431009166,0.40246464,119010.0,119000.0,1.84806784]
[1752431009366,0.40246464,119010.0,119000.0,2.56966784]
[1752431011175,0.43370464,119010.0,119000.0,2.56966784]
[1752431012476,0.43370464,119010.0,119000.0,2.35603887]
[1752431014374,0.43370464,119010.0,119000.0,2.56966784]
[1752431014869,0.43370464,119010.0,119000.0,1.84806784]
[1752431015075,0.43370464,119010.0,119000.0,2.56966784]
[1752431017575,0.06055901,119030.0,119020.0,0.1679817]
[1752431017878,0.1679719,119030.0,119020.0,1.05993964]
[1752431018482,1.14188628,119040.0,119030.0,0.2003376]
[1752431018681,0.92825731,119040.0,119030.0,0.46637558]
[1752431018980,0.92825731,119040.0,119030.0,0.53737926]
[1752431019175,0.8676983,119040.0,119030.0,0.53737926]
[1752431019480,0.2939383,119040.0,119030.0,0.53737926]
[1752431019676,0.8676983,119040.0,119030.0,0.89817926]
[1752431020381,0.2939383,119040.0,119030.0,0.92443095]
[1752431020681,0.8676983,119040.0,119030.0,0.92443095]
[1752431020881,0.8676983,119040.0,119030.0,0.94174662]
[1752431021580,0.8676983,119040.0,119030.0,0.63086228]
[1752431021879,0.8676983,119040.0,119030.0,0.91549493]
[1752431022081,0.8676983,119040.0,119030.0,0.63086228]
[1752431022878,0.8676983,119040.0,119030.0,0.27006228]
[1752431023072,0.8676983,119040.0,119030.0,0.63086228]
[1752431025385,0.8989383,119040.0,119030.0,0.63086228]
[1752431026486,0.9464883,119040.0,119030.0,0.63086228]
[1752431031092,0.9083861,119050.0,119040.0,0.2718535]
[1752431031286,0.9083861,119050.0,119040.0,0.6326535]
[1752431032993,1.19301875,119050.0,119040.0,0.6326535]
[1752431033390,0.57735305,119050.0,119040.0,0.6326535]
[1752431033592,0.8664004,119050.0,119040.0,0.6326535]
[1752431034196,1.15103305,119050.0,119040.0,0.6326535]
[1752431034500,1.15123305,119050.0,119040.0,0.6326535]
[1752431037599,1.16076305,119050.0,119040.0,0.6326534]
[1752431037800,1.16076305,119050.0,119040.0,0.4647]
[1752431038301,1.16076305,119050.0,119040.0,0.6326534]
[1752431038700,1.15123305,119050.0,119040.0,0.6326534]
[1752431039001,1.08009271,119050.0,119040.0,0.6326534]
[1752431043104,1.08009271,119050.0,119040.0,0.2718534]
[1752431043307,1.08009271,119050.0,119040.0,0.6326534]
[1752431044510,1.08009271,119050.0,119040.0,0.84614571]
[1752431046611,1.08009271,119050.0,119040.0,0.6326534]
[1752431048609,1.08009271,119050.0,119040.0,0.84614571]
[1752431049412,0.50641271,119050.0,119040.0,0.84614571]
[1752431049610,1.07997271,119050.0,119040.0,0.84614571]
[1752431050310,1.07997271,119050.0,119040.0,0.6326534]
[1752431050510,1.07997271,119050.0,119040.0,0.84614571]
[1752431050912,0.50641271,119050.0,119040.0,0.84614571]
[1752431051211,1.07997271,119050.0,119040.0,0.84614571]
[1752431053207,0.8664804,119050.0,119040.0,0.84614571]
[1752431053505,1.07997271,119050.0,119040.0,0.84614571]
[1752431053908,0.50641271,119050.0,119040.0,0.84614571]
[1752431054114,0.8189304,119050.0,119040.0,1.05963802]
[1752431054412,0.8189304,119050.0,119040.0,0.84614571]
[1752431054812,1.03242271,119050.0,119040.0,0.84614571]
[1752431055813,0.8189304,119050.0,119040.0,0.84614571]
[1752431056112,0.8189304,119050.0,119040.0,1.05963802]
[1752431056313,0.80434516,119050.0,119040.0,0.84614571]
[1752431056506,0.80434516,119050.0,119040.0,1.05963802]
[1752431057109,0.80430516,119050.0,119040.0,1.05963802]
[1752431057308,0.02085476,119050.0,119040.0,2.20667802]
[1752431058811,0.18879396,119050.0,119040.0,2.20667802]
[1752431059214,0.18879396,119050.0,119040.0,1.99318571]
[1752431059513,0.40228627,119050.0,119040.0,1.99318571]
[1752431059710,0.18879396,119050.0,119040.0,1.99318571]
[1752431059910,0.18879396,119050.0,119040.0,2.20667802]
[1752431060713,0.18879396,119050.0,119040.0,1.99318571]
[1752431060913,0.40228627,119050.0,119040.0,1.99318571]
[1752431062014,0.18879396,119050.0,119040.0,2.20667802]
[1752431062514,0.18879396,119050.0,119040.0,2.20767802]
[1752431064117,0.02085476,119050.0,119040.0,2.20767802]
[1752431065015,0.02085476,119050.0,119040.0,2.06523944]
[1752431071318,0.2098861,119080.0,119060.0,0.03229]
[1752431071522,0.38914353,119080.0,119070.0,1.747651]
[1752431072519,0.67368957,119080.0,119070.0,1.747651]
[1752431073120,0.38914353,119080.0,119070.0,1.747651]
[1752431073537,0.67368957,119080.0,119070.0,1.747651]
[1752431073722,0.38914353,119080.0,119070.0,1.747651]
[1752431074529,0.34716623,119080.0,119070.0,1.747651]
[1752431075828,0.63171227,119080.0,119070.0,1.747651]
[1752431076428,0.65533227,119080.0,119070.0,1.747651]
[1752431076830,0.63171227,119080.0,119070.0,1.747651]
[1752431078528,0.69227128,119080.0,119070.0,1.747651]
[1752431078724,0.71589128,119080.0,119070.0,0.633101]
[1752431078931,1.57379732,119080.0,119070.0,0.02325]
[1752431079430,1.28925128,119080.0,119070.0,0.02325]
[1752431080129,1.28925128,119080.0,119070.0,0.191161]
[1752431081439,1.28925128,119080.0,119070.0,0.02325]
[1752431081639,0.198491,119070.0,119060.0,0.73494246]
[1752431081840,0.55460704,119070.0,119060.0,0.73494246]
[1752431082734,0.55460704,119070.0,119060.0,0.69296166]
[1752431083132,0.55460704,119070.0,119060.0,0.12226806]
[1752431083338,0.57130213,119070.0,119060.0,0.65099306]
[1752431083539,0.57130213,119070.0,119060.0,0.48306806]
[1752431083739,0.57130213,119070.0,119060.0,0.12226806]
[1752431084245,0.63186114,119070.0,119060.0,0.12226806]
[1752431084733,0.63186114,119070.0,119060.0,0.01787806]
[1752431087638,0.57130213,119070.0,119060.0,0.01787806]
[1752431089436,0.2700892,119050.0,119040.0,0.00168004]
[1752431089651,1.14465033,119050.0,119040.0,0.02493004]
[1752431089845,1.14485033,119050.0,119040.0,0.02493004]
[1752431090651,1.14485033,119050.0,119040.0,0.02693004]
[1752431090845,1.14485033,119050.0,119040.0,0.00368004]
[1752431091039,1.14485033,119050.0,119040.0,0.00468004]
[1752431091542,1.16673462,119050.0,119040.0,0.00468004]
[1752431101348,0.57153033,119050.0,119040.0,0.17263324]
[1752431101553,0.86034429,119050.0,119040.0,0.27413324]
[1752431102050,0.86034429,119050.0,119040.0,0.63493324]
[1752431102239,0.28698429,119050.0,119040.0,0.91947928]
[1752431102443,0.21541429,119050.0,119040.0,0.91947928]
[1752431102656,0.78877429,119050.0,119040.0,0.91947928]
[1752431105154,0.21541429,119050.0,119040.0,0.91947928]
[1752431105652,0.86265429,119050.0,119040.0,0.91947928]
[1752431105845,0.28929429,119050.0,119040.0,0.91951928]
[1752431106152,0.86265429,119050.0,119040.0,0.46702004]
[1752431106355,0.86265429,119050.0,119040.0,0.63497324]
[1752431107152,0.86265429,119050.0,119040.0,0.46702004]
[1752431107354,1.14720033,119050.0,119040.0,0.63497344]
[1752431107552,0.86265429,119050.0,119040.0,0.63497344]
[1752431110146,0.28929429,119050.0,119040.0,0.63497344]
[1752431110351,0.86261429,119050.0,119040.0,0.91951948]
[1752431111252,0.86261429,119050.0,119040.0,0.63497344]
[1752431116653,0.86261429,119050.0,119040.0,0.91951948]
[1752431116955,0.86261429,119050.0,119040.0,0.63497344]
[1752431123063,0.28929429,119050.0,119040.0,0.63497344]
[1752431123263,0.86257429,119050.0,119040.0,0.91951948]
[1752431124857,0.86257429,119050.0,119040.0,0.55871948]
[1752431125063,0.86257429,119050.0,119040.0,0.91951948]
[1752431130767,0.86280288,119050.0,119040.0,0.91951948]
[1752431131366,0.92336189,119050.0,119040.0,0.91951948]
[1752431137670,0.86280288,119050.0,119040.0,0.91951948]
[1752431138967,1.0762492,119050.0,119040.0,1.06186608]
[1752431140472,1.0519792,119050.0,119040.0,1.06186608]
[1752431141072,0.75830288,119050.0,119040.0,1.06186608]
[1752431142275,0.75830288,119050.0,119040.0,0.63497344]
[1752431142574,0.75830288,119050.0,119040.0,1.06186608]
[1752431144770,0.01712368,119050.0,119040.0,2.4217124]
[1752431144963,0.18506258,119050.0,119040.0,2.20826608]
[1752431145168,0.01712368,119050.0,119040.0,2.20826608]
[1752431146174,0.18506258,119050.0,119040.0,2.20826608]
[1752431147068,0.18506258,119050.0,119040.0,2.06590485]
[1752431149675,0.01712368,119050.0,119040.0,2.06590485]
[1752431150477,0.18506278,119050.0,119040.0,2.06590485]
[1752431151479,0.01712368,119050.0,119040.0,2.06590485]
[1752431152378,0.01712368,119050.0,119040.0,2.35043626]
[1752431152574,0.01712368,119050.0,119040.0,2.64473626]
[1752431160491,0.1679226,119070.0,119060.0,0.266515]
[1752431160681,0.1679226,119070.0,119060.0,2.41948641]
[1752431162596,0.1679226,119070.0,119060.0,2.4419842]
[1752431164602,0.1679226,119070.0,119060.0,2.15745279]
[1752431164901,0.1679226,119070.0,119060.0,2.4419842]
[1752431165387,0.2501226,119070.0,119060.0,2.15745279]
[1752431165584,0.2746026,119070.0,119060.0,2.134955]
[1752431167798,0.2746026,119070.0,119060.0,2.15705828]
[1752431168295,0.2746026,119070.0,119060.0,2.44158969]
[1752431169001,0.48798337,119070.0,119060.0,2.37043905]
[1752431169793,0.48798337,119070.0,119060.0,2.34833577]
[1752431170494,0.46350337,119070.0,119060.0,2.34833577]
[1752431170691,0.48798337,119070.0,119060.0,2.34833577]
[1752431171597,0.48798337,119070.0,119060.0,2.56171654]
[1752431171798,0.46350337,119070.0,119060.0,2.56171654]
[1752431172188,0.2501226,119070.0,119060.0,2.56171654]
[1752431172392,0.266885,119070.0,119060.0,2.56171654]
[1752431172701,0.184685,119070.0,119060.0,2.56171654]
[1752431184014,0.2518567,119080.0,119070.0,0.1679109]
[1752431184208,0.2518567,119080.0,119070.0,2.20583244]
[1752431184209,0.2520567,119080.0,119070.0,2.20583244]
[1752431184618,0.2520567,119080.0,119070.0,1.99245167]
[1752431186411,0.0002,119080.0,119070.0,2.20583244]
[1752431191015,0.004,119090.0,119080.0,0.2719768]
[1752431191213,0.004,119090.0,119080.0,2.41911911]
[1752431191413,0.004,119090.0,119080.0,2.20573834]
[1752431192417,0.004,119090.0,119080.0,2.41911911]
[1752431192725,0.004,119090.0,119080.0,2.43637768]
[1752431193014,0.004,119090.0,119080.0,2.36484245]
[1752431193918,0.005,119100.0,119090.0,0.1678827]
[1752431194115,0.005,119100.0,119090.0,0.91706624]
[1752431194420,0.32351671,119130.0,119120.0,0.1996604]
[1752431194617,0.35401671,119130.0,119120.0,2.03029689]
[1752431194925,0.37707671,119130.0,119120.0,1.74599335]
[1752431195311,0.37707671,119130.0,119120.0,2.03029689]
[1752431196019,0.39369283,119130.0,119120.0,2.03029689]
[1752431196920,0.33313382,119130.0,119120.0,2.03029689]
[1752431198120,0.40200451,119130.0,119120.0,2.03029689]
[1752431198721,0.33313382,119130.0,119120.0,2.03029689]
[1752431199323,0.31007382,119130.0,119120.0,2.03029689]
[1752431200319,0.26811252,119130.0,119120.0,2.03029689]
[1752431201119,0.10028612,119130.0,119120.0,2.03029689]
[1752431201422,0.02061612,119130.0,119120.0,2.03029689]
[1752431202018,0.02061612,119130.0,119120.0,2.31460043]
[1752431202218,0.02061612,119130.0,119120.0,2.33208409]
[1752431202827,0.209778,119140.0,119130.0,0.1678264]
[1752431203018,0.209778,119140.0,119130.0,0.89790559]
[1752431203218,0.1678224,119140.0,119130.0,0.89790559]
[1752431204224,0.18151117,119150.0,119140.0,0.2718923]
[1752431204225,0.25395547,119150.0,119140.0,0.2718923]
[1752431204528,0.25395547,119150.0,119140.0,0.41627]
[1752431204726,0.25395547,119150.0,119130.0,0.02365]
[1752431204727,0.2705423,119140.0,119130.0,0.02365]
[1752431205029,0.55484584,119140.0,119130.0,0.02365]
[1752431205629,0.2705423,119140.0,119130.0,0.02365]
[1752431205824,0.55484584,119140.0,119130.0,0.38445]
[1752431206022,0.2705565,119130.0,119120.0,0.02532891]
[1752431206224,0.91566004,119130.0,119120.0,0.00167891]
[1752431206825,1.33354804,119130.0,119120.0,0.00167891]
[1752431207025,1.0492445,119130.0,119120.0,0.00167891]
[1752431207325,1.33354804,119130.0,119120.0,0.00167891]
[1752431207525,1.33354804,119130.0,119120.0,0.00267891]
[1752431207727,1.33374804,119130.0,119120.0,0.00267891]
[1752431208331,1.33374804,119130.0,119120.0,0.00367891]
[1752431208529,1.91582804,119130.0,119120.0,0.00367891]
[1752431209219,1.66582804,119130.0,119120.0,0.00367891]
[1752431210527,0.1909429,119090.0,119080.0,0.07587086]
[1752431210727,1.77876644,119090.0,119080.0,0.05222086]
[1752431211732,0.1909429,119090.0,119080.0,0.27558786]
[1752431212032,0.7729829,119090.0,119080.0,0.27558786]
[1752431212328,1.75953398,119090.0,119080.0,0.00193139]
[1752431212635,0.1909851,119060.0,119050.0,0.10433]
[1752431212927,0.258586,119060.0,119050.0,0.2722692]
[1752431213129,0.841106,119060.0,119050.0,0.2722692]
[1752431213532,0.258586,119060.0,119050.0,0.2722692]
[1752431213732,0.841066,119060.0,119050.0,0.2722692]
[1752431213930,1.48616954,119060.0,119050.0,0.04861]
[1752431214332,1.48616954,119060.0,119050.0,0.10379]
[1752431214725,1.48616954,119060.0,119050.0,0.005]
[1752431214924,0.92030735,119060.0,119050.0,0.005]
[1752431215126,0.1679392,119050.0,119040.0,0.05204208]
[1752431215331,0.85263055,119050.0,119040.0,0.05204208]
[1752431215526,1.55493409,119050.0,119030.0,0.04839]
[1752431215732,0.1679674,119030.0,119020.0,0.02311]
[1752431215929,0.85265875,119030.0,119020.0,0.04839]
[1752431216125,0.85265875,119030.0,119020.0,0.2715516]
[1752431216126,0.79035521,119030.0,119020.0,0.2715516]
[1752431216628,1.15115521,119030.0,119020.0,0.10357]
[1752431216830,1.43545875,119030.0,119020.0,0.04839]
[1752431217233,0.1909516,119020.0,119010.0,0.10357]
[1752431217428,0.20756941,119020.0,119010.0,0.2715657]
[1752431217630,0.49187295,119020.0,119010.0,0.2715657]
[1752431218330,0.1679957,119010.0,119000.0,0.02672329]
[1752431218529,1.43604705,119010.0,119000.0,0.10718329]
[1752431219531,0.76781351,119010.0,119000.0,0.92429663]
[1752431219836,0.1679957,119010.0,119000.0,0.92629663]
[1752431220240,0.2749565,119020.0,119010.0,0.2715657]
[1752431220435,0.18454142,119020.0,119010.0,0.57339245]
[1752431220734,0.1679816,119020.0,119010.0,0.93419245]
[1752431220947,0.2099674,119030.0,119020.0,0.2000516]
[1752431221148,0.7940074,119030.0,119020.0,0.96596379]
[1752431221349,0.6127439,119040.0,119030.0,0.2715374]
[1752431221548,1.1967439,119040.0,119030.0,0.60514959]
[1752431221750,0.76846256,119040.0,119030.0,0.96594959]
[1752431221950,0.7519234,119040.0,119030.0,0.96594959]
[1752431222145,0.1679634,119040.0,119030.0,0.96594959]
[1752431222348,1.2894039,119050.0,119040.0,0.2715233]
[1752431222349,1.4153628,119050.0,119040.0,0.2715233]
[1752431222549,0.2539228,119050.0,119040.0,0.2715233]
[1752431222952,0.8383628,119050.0,119040.0,0.60513549]
[1752431223150,0.8383628,119050.0,119040.0,0.6323233]
[1752431223345,0.002,119050.0,119040.0,0.6323233]
[1752431223549,0.002,119050.0,119040.0,0.98859768]
[1752431223751,0.002,119050.0,119040.0,0.96593549]
[1752431224353,0.1699392,119050.0,119040.0,0.96593549]
[1752431226354,0.1699392,119050.0,119040.0,0.96693549]
[1752431226548,0.1699392,119050.0,119040.0,0.96893549]
[1752431227555,0.002,119050.0,119040.0,0.96893549]
[1752431227752,0.0022,119050.0,119040.0,0.96893549]
[1752431229146,0.0022,119050.0,119040.0,1.26323549]
[1752431229961,0.1679222,119070.0,119060.0,0.2714951]
[1752431230261,0.1679222,119070.0,119060.0,0.96590729]
[1752431231349,0.1689222,119070.0,119060.0,0.96590729]
[1752431231749,0.001,119070.0,119060.0,0.96590729]
[1752431231956,0.001,119070.0,119060.0,1.32670729]
[1752431232152,0.002,119070.0,119060.0,1.32670729]
[1752431232858,0.001,119070.0,119060.0,1.32770729]
[1752431233262,0.7516632,119080.0,119070.0,0.199981]
[1752431233451,0.01655073,119080.0,119070.0,0.96589319]
[1752431234160,0.18444763,119080.0,119070.0,0.96589319]
[1752431234356,0.01655073,119080.0,119070.0,0.96589319]
[1752431234756,0.18444763,119080.0,119070.0,0.632281]
[1752431243266,0.1678969,119080.0,119070.0,0.632281]
[1752431243471,0.18463461,119080.0,119070.0,0.96589319]
[1752431245578,0.01673771,119080.0,119070.0,0.96589319]
[1752431245977,0.18463461,119080.0,119070.0,0.96589319]
[1752431246677,0.18463461,119080.0,119070.0,0.632281]
[1752431246975,0.18483461,119080.0,119070.0,0.96593319]
[1752431247182,0.01693771,119080.0,119070.0,0.96593319]
[1752431247766,0.18483461,119080.0,119070.0,0.96593319]
[1752431248978,0.18483461,119080.0,119070.0,0.91673976]
[1752431254986,0.18483461,119080.0,119070.0,0.632321]
[1752431255183,0.18483461,119080.0,119070.0,0.91673976]
[1752431255381,0.01693771,119080.0,119070.0,0.91673976]
[1752431255588,0.18483461,119080.0,119070.0,0.91673976]
[1752431257190,0.24500073,119080.0,119070.0,0.91673976]
[1752431257991,0.18483461,119080.0,119070.0,0.91673976]
[1752431258292,0.24500073,119080.0,119070.0,0.91673976]
[1752431264599,0.07710383,119080.0,119070.0,0.91673976]
[1752431264802,0.18483461,119080.0,119070.0,0.91673976]
[1752431264996,0.01693771,119080.0,119070.0,0.91673976]
[1752431267598,0.07710383,119080.0,119070.0,0.91673976]
[1752431269709,0.24500073,119080.0,119070.0,0.91673976]
[1752431270905,0.22826302,119080.0,119070.0,0.91673976]
[1752431271099,0.24506841,119080.0,119070.0,0.91673976]
[1752431271601,0.18490229,119080.0,119070.0,0.91673976]
[1752431272101,0.18490229,119080.0,119070.0,0.632321]
[1752431272402,0.18490229,119080.0,119070.0,0.91673976]
[1752431274305,0.01700539,119080.0,119070.0,0.91673976]
[1752431276299,0.18490229,119080.0,119070.0,0.91673976]
[1752431276706,0.01700539,119080.0,119070.0,0.91673976]
[1752431277006,0.18490229,119080.0,119070.0,0.91673976]
[1752431277810,0.01700539,119080.0,119070.0,0.91673976]
[1752431278107,0.18490229,119080.0,119070.0,0.91673976]
[1752431278309,0.01700539,119080.0,119070.0,0.91673976]
[1752431278608,0.18490229,119080.0,119070.0,0.91673976]
[1752431280110,0.01700539,119080.0,119070.0,0.91673976]
[1752431280312,0.18490229,119080.0,119070.0,0.91673976]
[1752431286018,0.18490229,119080.0,119070.0,0.632321]
[1752431286213,0.004,119090.0,119080.0,0.2719969]
[1752431286417,0.06416612,119090.0,119080.0,0.91721566]
[1752431286820,0.004,119090.0,119080.0,0.91721566]
[1752431287110,0.004,119090.0,119080.0,1.49541566]
[1752431287317,0.005,119090.0,119080.0,1.49541566]
[1752431287717,0.006,119090.0,119080.0,1.49541566]
[1752431288622,0.06016612,119110.0,119100.0,0.2006587]
[1752431288823,0.63824612,119110.0,119100.0,0.90331497]
[1752431289021,0.06016612,119110.0,119100.0,0.90331497]
[1752431289217,0.63824612,119110.0,119100.0,0.90331497]
[1752431289422,0.7459346,119110.0,119100.0,0.90331497]
[1752431289624,0.43735512,119120.0,119110.0,0.2006446]
[1752431289821,0.99071512,119120.0,119110.0,0.2699546]
[1752431290019,0.99063512,119120.0,119110.0,0.2699546]
[1752431290319,0.41263512,119120.0,119110.0,0.55437336]
[1752431290524,0.99091512,119120.0,119110.0,0.91517336]
[1752431290720,1.01763512,119120.0,119110.0,0.6277546]
[1752431291626,1.02163512,119120.0,119110.0,0.6277546]
[1752431293425,1.30605388,119120.0,119110.0,0.6277546]
[1752431293736,1.02163512,119120.0,119110.0,0.6277546]
[1752431293938,1.30605388,119120.0,119110.0,0.2669546]
[1752431294234,1.30605388,119120.0,119110.0,0.6277546]
[1752431294939,1.19801618,119120.0,119110.0,0.6277546]
[1752431295235,1.23997938,119120.0,119110.0,0.6277546]
[1752431296435,0.66169938,119120.0,119110.0,0.6277546]
[1752431296637,1.23961938,119120.0,119110.0,0.6277546]
[1752431296936,1.23961938,119120.0,119110.0,0.61397483]
[1752431297738,1.23961938,119120.0,119110.0,0.25317483]
[1752431298139,1.62561938,119120.0,119110.0,0.04646]
[1752431298338,1.64223935,119120.0,119110.0,0.04646]
[1752431298531,1.64223935,119120.0,119110.0,0.027351]
[1752431298838,1.64223935,119120.0,119110.0,0.052201]
[1752431300540,1.58207323,119120.0,119110.0,0.052201]
[1752431301836,0.1990546,119110.0,119100.0,0.07131]
[1752431302040,0.2237887,119100.0,119090.0,0.3143494]
[1752431302233,1.14657743,119100.0,119090.0,0.3143494]
[1752431303840,0.86215867,119100.0,119090.0,0.6751494]
[1752431304039,0.86215867,119100.0,119090.0,0.59876816]
[1752431304040,0.24060867,119100.0,119090.0,0.59876816]
[1752431304345,0.59421997,119100.0,119090.0,0.95956816]
[1752431304637,0.01681997,119100.0,119090.0,0.95956816]
[1752431304846,0.01681997,119100.0,119090.0,1.53700816]
[1752431306242,0.01681997,119100.0,119090.0,1.83130816]
[1752431306438,0.21588867,119100.0,119090.0,1.25386816]
[1752431306644,0.21588867,119100.0,119090.0,1.5478494]